bitfinex/quotes_ETHUSD_20250903
["timestamp","ask_amount","ask_price","bid_price","bid_amount"]
[1756921796729,1.2329,4490.2,4490.1,3.9132]
[1756921797233,1.2329,4490.2,4490.1,0.1112]
[1756921797438,1.2329,4490.2,4490.1,3.9132]
[1756921798719,1.2329,4490.2,4490.1,4.02119998]
[1756921798919,1.2329,4490.2,4490.1,7.82219998]
[1756921799137,3.80596215,4490.2,4490.1,3.90999998]
[1756921799323,4.57888986,4490.2,4489.8,0.1112]
[1756921799634,2.22717149,4490.0,4489.9,3.8]
[1756921799815,2.22724531,4489.9,4489.6,1.8232]
[1756921800017,0.9603,4489.8,4489.7,3.8]
[1756921800332,1.2696,4489.8,4489.7,3.8]
[1756921800827,0.8021,4489.8,4489.7,3.8]
[1756921801336,0.4948,4490.2,4489.7,3.8]
[1756921801534,0.4928,4490.1,4489.7,4.097]
[1756921801720,0.4928,4490.1,4489.7,6.02730926]
[1756921802107,0.4928,4490.1,4490.0,0.1112]
[1756921802310,0.8021,4490.1,4490.0,0.1112]
[1756921802503,0.8021,4490.1,4489.6,1.712]
[1756921802504,4.75032223,4490.1,4489.6,1.712]
[1756921802851,0.1112,4489.8,4489.4,3.801]
[1756921803023,0.3093,4489.5,4489.4,3.801]
[1756921803219,0.8021,4489.5,4489.4,3.9122]
[1756921803851,1.2696,4489.5,4489.4,3.9122]
[1756921804222,1.2696,4489.5,4489.4,0.1112]
[1756921804552,1.69656,4489.5,4489.4,3.9132]
[1756921804945,1.2696,4489.5,4489.4,3.9132]
[1756921805723,0.8021,4489.5,4489.4,3.9132]
[1756921807447,1.2696,4489.5,4489.4,0.1112]
[1756921807656,6.49701953,4489.5,4489.4,0.1112]
[1756921807963,8.76441887,4489.5,4489.4,0.1112]
[1756921808163,8.76441887,4489.5,4489.0,3.799]
[1756921808164,5.22746914,4489.4,4489.0,3.799]
[1756921808336,5.22746914,4489.4,4488.9,1.712]
[1756921808535,6.49706914,4489.4,4489.0,3.8]
[1756921808739,6.97727593,4489.4,4488.9,5.512]
[1756921808939,6.97727593,4489.4,4488.9,1.712]
[1756921809137,2.22751876,4489.3,4488.8,0.026]
[1756921809337,5.33891725,4488.9,4488.8,0.026]
[1756921809637,2.22781651,4488.7,4488.6,0.001]
[1756921809849,5.7080233,4488.7,4488.6,0.001]
[1756921810040,8.6896233,4488.7,4488.6,0.001]
[1756921810237,2.22801506,4488.3,4487.8,0.026]
[1756921810452,16.51332551,4488.3,4487.8,0.026]
[1756921810765,13.98092551,4488.3,4487.8,0.026]
[1756921810932,17.78292551,4488.3,4487.8,0.026]
[1756921811470,11.63661768,4488.3,4487.8,0.026]
[1756921811773,7.83461768,4488.3,4487.8,0.026]
[1756921811929,7.35441089,4488.3,4487.8,0.026]
[1756921812652,0.4928,4489.0,4488.2,0.298]
[1756921812847,0.4928,4489.0,4488.2,3.1972]
[1756921813072,2.22784449,4488.7,4488.2,2.426]
[1756921813230,3.0,4488.6,4488.2,2.426]
[1756921813774,3.08930276,4489.0,4488.5,0.297]
[1756921813974,2.22777637,4488.8,4488.5,0.297]
[1756921814133,2.22777637,4488.8,4488.2,2.426]
[1756921814524,0.35821028,4488.9,4488.2,2.426]
[1756921814733,5.22776688,4488.8,4488.2,2.426]
[1756921815273,3.0,4488.8,4488.2,4.65404253]
[1756921815577,2.31698426,4489.0,4488.2,4.6540556]
[1756921815731,3.0,4488.9,4488.2,4.6540556]
[1756921815938,2.2277319,4488.9,4488.2,2.426]
[1756921816577,2.22778024,4488.8,4488.2,2.426]
[1756921816740,0.3093,4488.3,4488.2,3.801]
[1756921816941,6.49761506,4488.3,4488.2,0.001]
[1756921817243,3.64976151,4488.3,4488.2,0.001]
[1756921817462,3.0,4488.8,4488.2,0.298]
[1756921817636,2.2278158,4488.8,4488.2,0.298]
[1756921817883,0.4928,4488.9,4488.2,0.298]
[1756921818157,0.08930276,4489.0,4488.2,0.7722]
[1756921818544,2.22776129,4488.9,4488.2,0.7722]
[1756921818768,3.0,4488.8,4488.3,3.803]
[1756921819070,3.0,4488.7,4488.3,3.803]
[1756921820361,5.22783442,4488.7,4488.3,3.803]
[1756921820876,3.0,4488.7,4488.6,0.297]
[1756921821539,5.22787055,4488.6,4488.3,3.803]
[1756921821734,3.4928,4488.6,4488.2,0.001]
[1756921821931,3.0,4488.6,4488.3,3.8]
[1756921822137,3.0,4488.6,4488.5,0.297]
[1756921823270,3.3093,4488.6,4488.4,0.1112]
[1756921823837,3.0,4488.6,4488.4,0.1112]
[1756921824133,2.22776895,4488.8,4488.4,0.1112]
[1756921824337,2.22776895,4488.8,4488.4,3.9102]
[1756921824570,2.22772151,4488.9,4488.4,3.9102]
[1756921824884,0.1112,4489.0,4488.4,6.13811961]
[1756921825167,2.22750946,4489.4,4488.9,0.297]
[1756921825471,2.22736992,4489.6,4489.0,0.1112]
[1756921825637,5.22736992,4489.6,4489.0,0.1112]
[1756921825835,0.3093,4489.1,4489.0,0.1112]
[1756921826366,3.0,4489.4,4489.0,4.2062]
[1756921826871,5.22742425,4489.5,4489.0,4.2062]
[1756921827271,5.22742425,4489.5,4489.0,4.6804]
[1756921827473,2.22748773,4489.4,4489.0,4.6804]
[1756921827674,2.22742502,4489.5,4489.0,4.6804]
[1756921828240,2.22747126,4489.4,4489.0,4.6804]
[1756921828570,3.604,4489.7,4489.0,4.2062]
[1756921828775,2.2275736,4489.2,4489.0,3.9092]
[1756921829277,3.497218,4489.1,4488.7,3.796]
[1756921829435,0.9603,4489.0,4488.7,3.796]
[1756921829640,0.1112,4489.3,4489.0,0.297]
[1756921829864,0.4928,4489.6,4489.1,7.70499998]
[1756921830075,5.22746005,4489.5,4489.1,7.70499998]
[1756921830288,3.0,4489.5,4489.1,7.70499998]
[1756921830586,0.4911,4489.5,4489.1,7.70499998]
[1756921830739,5.52006838,4489.2,4489.1,3.90999998]
[1756921830943,6.46306838,4489.2,4489.1,3.90999998]
[1756921831554,4.2355,4489.2,4489.1,3.90999998]
[1756921831882,6.01116838,4489.2,4489.1,3.90999998]
[1756921832884,6.46306838,4489.2,4489.1,3.90999998]
[1756921833064,7.78971658,4489.2,4489.1,3.90999998]
[1756921834945,7.33781658,4489.2,4489.1,3.90999998]
[1756921835874,4.6191482,4489.2,4488.7,3.90999998]
[1756921836061,3.0,4489.3,4488.7,3.90999998]
[1756921836270,3.0,4489.3,4489.1,0.3136]
[1756921836444,5.22752697,4489.3,4489.1,0.3136]
[1756921836883,5.22752697,4489.3,4488.8,0.4413]
[1756921837079,0.2925,4488.9,4488.7,3.90999998]
[1756921837267,0.3677,4488.9,4488.8,7.70299998]
[1756921838470,0.0752,4488.9,4488.8,8.01659998]
[1756921839882,0.8588,4488.9,4488.8,3.90999998]
[1756921840986,0.0752,4488.9,4488.8,4.22359998]
[1756921841183,0.0752,4488.9,4488.8,4.66489998]
[1756921841386,0.0752,4488.9,4488.8,6.89266686]
[1756921841585,0.0752,4488.9,4488.8,4.66489998]
[1756921841787,0.0752,4488.9,4488.8,6.89266686]
[1756921842153,0.0752,4488.9,4488.8,7.34786686]
[1756921842383,0.0752,4488.9,4488.8,8.86705695]
[1756921842591,0.0752,4488.9,4488.8,8.97825695]
[1756921843688,0.0752,4488.9,4488.8,9.77025695]
[1756921847189,0.0752,4488.9,4488.8,9.31505695]
[1756921847418,0.0752,4488.9,4488.8,9.92976686]
[1756921847575,0.0752,4488.9,4488.8,10.68466686]
[1756921847922,0.0752,4488.9,4488.8,11.93186686]
[1756921848284,0.0752,4488.9,4488.8,8.13986686]
[1756921848486,0.0752,4488.9,4488.8,10.68466686]
[1756921849404,0.0752,4488.9,4488.8,12.14721695]
[1756921850971,0.0752,4488.9,4488.8,7.91391695]
[1756921851166,0.0752,4488.9,4488.8,10.24236686]
[1756921851367,0.0772,4488.9,4488.8,10.24236686]
[1756921852003,0.0772,4488.9,4488.8,10.68366686]
[1756921852168,0.0772,4488.9,4488.8,11.13886686]
[1756921853692,0.0772,4488.9,4488.8,10.69756686]
[1756921853892,0.002,4489.6,4489.5,3.01941953]
[1756921854069,0.002,4489.6,4489.5,14.67269506]
[1756921854399,0.002,4489.6,4489.5,15.88279506]
[1756921854771,0.002,4489.6,4489.5,19.79279504]
[1756921857405,0.002,4489.6,4489.5,19.90399504]
[1756921857581,0.002,4489.6,4489.5,22.17190301]
[1756921858177,0.002,4489.6,4489.5,17.92570301]
[1756921858379,0.002,4489.6,4489.5,15.56742748]
[1756921858580,0.002,4489.6,4489.5,22.17190301]
[1756921859376,0.002,4490.0,4489.9,6.90022107]
[1756921859595,0.002,4490.0,4489.9,11.46044318]
[1756921859912,0.002,4490.0,4489.9,12.31954318]
[1756921862020,0.002,4490.0,4489.9,8.52854318]
[1756921862231,0.3077,4490.0,4489.9,6.98864318]
[1756921862385,0.7607,4490.0,4489.9,10.00942107]
[1756921862819,0.002,4490.0,4489.9,10.30742107]
[1756921863212,0.002,4490.0,4489.9,11.54932107]
[1756921863524,0.002,4490.0,4489.9,17.6985966]
[1756921863685,0.002,4490.0,4489.9,20.41890457]
[1756921865523,0.8875,4491.3,4490.7,2.22682432]
[1756921865733,0.8875,4491.3,4490.7,11.6078243]
[1756921865884,0.025,4491.8,4490.7,14.83823818]
[1756921866209,0.025,4491.8,4490.7,14.94943818]
[1756921866397,0.025,4491.8,4490.7,15.53838843]
[1756921869221,0.025,4491.8,4490.7,18.53838843]
[1756921869945,0.025,4491.8,4491.7,3.01832856]
[1756921870231,0.025,4491.8,4491.7,13.63744242]
[1756921870530,0.025,4491.8,4491.7,14.04564242]
[1756921870740,0.025,4491.8,4491.7,16.20794648]
[1756921872412,0.025,4491.8,4491.7,12.41894648]
[1756921872617,0.025,4491.8,4491.7,16.20794648]
[1756921874427,0.025,4491.8,4491.7,17.11024648]
[1756921875006,0.025,4491.8,4491.7,16.65784648]
[1756921876335,0.025,4491.8,4491.7,16.20794648]
[1756921877436,0.025,4491.8,4491.7,12.41894648]
[1756921877632,0.025,4491.8,4491.7,16.65684648]
[1756921877802,0.025,4491.8,4491.7,12.41894648]
[1756921878008,0.025,4491.8,4491.7,7.00383262]
[1756921878009,0.3307,4491.8,4491.7,7.00383262]
[1756921878206,1.2182,4491.8,4491.7,1.8232]
[1756921878411,1.2182,4491.8,4491.7,7.83752856]
[1756921879049,0.7837,4491.8,4491.7,7.83752856]
[1756921879340,1.2182,4491.8,4491.7,7.83752856]
[1756921879510,0.7837,4491.8,4491.7,7.83752856]
[1756921879707,1.2182,4491.8,4491.7,7.83752856]
[1756921881245,0.3307,4491.8,4491.7,12.95464242]
[1756921881928,0.7837,4491.8,4491.7,12.95464242]
[1756921882124,1.2182,4491.8,4491.7,12.95464242]
[1756921882526,1.2182,4491.8,4491.7,7.83752856]
[1756921883761,1.2182,4491.8,4491.7,1.8232]
[1756921884060,1.34002,4491.8,4491.7,5.6112]
[1756921884229,0.3307,4491.8,4491.7,7.83752856]
[1756921885069,0.025,4491.8,4491.7,13.14522854]
[1756921885376,0.025,4491.8,4491.7,13.25642854]
[1756921885555,0.025,4491.8,4491.7,15.52433651]
[1756921885760,0.7837,4491.8,4491.7,14.77643651]
[1756921885955,0.7837,4491.8,4491.7,10.98843651]
[1756921886155,0.7837,4491.8,4491.7,14.77643651]
[1756921886481,0.7837,4491.8,4491.7,11.71552854]
[1756921886675,1.2182,4491.8,4491.7,9.48919998]
[1756921886980,1.2182,4491.8,4491.7,5.70219998]
[1756921887277,1.2182,4491.8,4491.7,9.48919998]
[1756921887436,1.2182,4491.8,4491.7,5.70219998]
[1756921887631,1.2182,4491.8,4491.7,9.48919998]
[1756921888941,1.56263345,4491.8,4491.7,9.48919998]
[1756921889140,1.56263345,4491.8,4491.7,5.6102]
[1756921889141,1.2202,4491.8,4491.7,5.6102]
[1756921890346,1.2202,4491.8,4491.7,7.83652856]
[1756921890575,1.2202,4491.8,4491.7,5.6102]
[1756921890776,1.2202,4491.8,4491.7,7.83652856]
[1756921893982,0.7857,4491.8,4491.7,7.83652856]
[1756921894189,0.7857,4491.8,4491.7,1.8232]
[1756921894390,1.2305,4491.8,4491.7,5.6102]
[1756921894711,1.89976863,4491.8,4491.7,7.83652856]
[1756921895210,1.89976863,4491.8,4491.7,11.71552854]
[1756921895511,1.45496863,4491.8,4491.7,11.71552854]
[1756921895808,0.7857,4491.8,4491.7,11.71552854]
[1756921896177,0.3327,4491.8,4491.7,11.71552854]
[1756921896377,0.027,4491.8,4491.7,14.36433535]
[1756921896600,0.027,4491.8,4491.7,15.15633535]
[1756921897100,0.027,4491.8,4491.7,19.84364921]
[1756921897313,0.027,4491.8,4491.7,20.27344921]
[1756921898673,0.027,4491.8,4491.7,19.84364921]
[1756921899017,0.027,4491.8,4491.7,20.27344921]
[1756921900209,0.027,4491.8,4491.7,20.72394921]
[1756921900916,0.027,4491.8,4491.7,20.27344921]
[1756921901579,0.66912085,4492.6,4492.5,3.0179321]
[1756921901888,0.66912085,4492.6,4492.5,12.33503917]
[1756921902206,0.025,4492.8,4492.7,3.01783301]
[1756921902515,0.025,4492.8,4492.7,8.51483301]
[1756921902676,0.025,4492.8,4492.7,8.82793301]
[1756921903179,0.025,4492.8,4492.7,9.25773301]
[1756921903380,0.025,4492.8,4492.7,10.95911023]
[1756921903695,0.025,4492.8,4492.7,5.95131023]
[1756921903896,0.333,4492.8,4492.7,7.72283301]
[1756921904196,0.025,4492.8,4492.7,9.25773301]
[1756921905813,0.025,4492.8,4492.7,12.81943301]
[1756921906019,0.025,4492.8,4492.7,12.36893301]
[1756921906319,0.025,4492.8,4492.7,17.48604687]
[1756921906530,0.025,4492.8,4492.7,19.48742409]
[1756921906700,0.025,4492.8,4492.7,23.36642407]
[1756921907308,0.025,4492.8,4492.7,20.03092407]
[1756921907506,0.025,4492.8,4492.7,23.36642407]
[1756921907906,0.025,4492.8,4492.7,6.04941023]
[1756921907907,0.027,4492.8,4492.7,6.04941023]
[1756921908107,0.027,4492.8,4492.7,7.83403301]
[1756921908309,0.027,4492.8,4492.7,4.84003301]
[1756921908503,0.027,4492.8,4492.7,8.62603301]
[1756921909227,1.2582,4492.8,4492.7,5.6082]
[1756921909524,1.2582,4492.8,4492.7,5.6072]
[1756921909822,1.2582,4492.8,4492.7,7.83303301]
[1756921910228,0.8134,4492.8,4492.7,7.83303301]
[1756921910825,0.335,4492.8,4492.7,7.83303301]
[1756921911433,0.8134,4492.8,4492.7,7.83303301]
[1756921911594,1.2582,4492.8,4492.7,5.6072]
[1756921911925,1.2582,4492.8,4492.7,4.04803301]
[1756921912126,1.2582,4492.8,4492.7,1.8222]
[1756921912306,1.2582,4492.8,4492.7,5.6072]
[1756921912704,0.8134,4492.8,4492.7,1.8222]
[1756921912905,0.8134,4492.8,4492.7,7.83303301]
[1756921913826,1.2582,4492.8,4492.7,7.83303301]
[1756921914031,1.2582,4492.8,4492.7,5.6072]
[1756921914324,1.2582,4492.8,4492.7,5.70119998]
[1756921914522,1.38402,4492.8,4492.7,9.48619998]
[1756921915226,1.38402,4492.8,4492.7,5.496]
[1756921919555,0.93922,4492.8,4492.7,5.496]
[1756921919729,0.8134,4492.8,4492.7,5.496]
[1756921920647,1.2738,4492.8,4492.7,5.496]
[1756921922355,0.8134,4492.8,4492.7,5.496]
[1756921923055,1.2738,4492.8,4492.7,5.496]
[1756921923436,0.027,4492.8,4492.7,5.7955]
[1756921923638,0.027,4492.8,4492.7,6.82857]
[1756921923857,0.027,4492.8,4492.7,2.60117]
[1756921924055,0.027,4492.8,4492.7,7.72183301]
[1756921924235,0.027,4492.8,4492.7,5.496]
[1756921924441,0.027,4492.8,4492.7,5.7955]
[1756921924639,0.027,4492.8,4492.7,9.67449998]
[1756921924872,0.027,4492.8,4492.7,11.90033299]
[1756921925262,0.027,4492.8,4492.7,12.34273299]
[1756921926276,0.027,4492.8,4492.7,11.90033299]
[1756921927338,0.027,4492.8,4492.7,13.36831861]
[1756921928361,0.027,4492.8,4492.7,9.58331861]
[1756921928662,0.027,4492.8,4492.7,13.36831861]
[1756921929260,0.027,4492.8,4492.7,14.28961861]
[1756921929771,0.027,4492.8,4492.7,11.1424856]
[1756921930159,0.027,4492.8,4492.7,9.48931863]
[1756921930357,0.027,4492.8,4492.7,7.74238562]
[1756921930586,0.027,4492.8,4492.7,9.48931863]
[1756921930805,0.027,4492.8,4492.7,7.26348562]
[1756921931007,0.027,4492.8,4492.7,6.96398562]
[1756921931215,0.003,4493.2,4492.7,10.41061863]
[1756921931394,0.003,4493.2,4493.1,9.92776598]
[1756921931704,0.003,4493.2,4493.1,15.94040084]
[1756921931894,0.003,4493.2,4493.1,17.16120084]
[1756921932092,0.003,4493.2,4493.1,17.83002931]
[1756921933007,0.003,4493.2,4493.1,11.69426333]
[1756921933303,0.003,4493.2,4493.1,13.25172195]
[1756921933683,0.3154,4493.2,4493.1,3.78309348]
[1756921933900,1.2478,4493.2,4493.1,3.786]
[1756921934090,1.20356309,4493.2,4492.7,1.711]
[1756921934286,1.20356309,4493.2,4492.8,3.789]
[1756921934287,0.9324,4493.1,4492.8,3.789]
[1756921934609,0.3124,4492.9,4492.8,3.789]
[1756921934807,0.7844,4492.9,4492.8,3.789]
[1756921935811,1.2448,4492.9,4492.7,1.711]
[1756921935983,1.2448,4492.9,4492.8,3.789]
[1756921935984,0.43688,4492.9,4492.8,3.789]
[1756921936178,0.3124,4492.9,4492.8,3.789]
[1756921936609,1.2448,4492.9,4492.8,3.789]
[1756921936920,1.2448,4492.9,4492.7,1.711]
[1756921937211,0.3124,4492.9,4492.8,3.789]
[1756921937776,1.2448,4492.9,4492.8,3.789]
[1756921939107,0.7844,4492.9,4492.8,3.789]
[1756921939310,1.2448,4492.9,4492.8,3.789]
[1756921939518,0.3124,4492.9,4492.8,3.789]
[1756921939899,1.2448,4492.9,4492.8,3.789]
[1756921940203,0.7844,4492.9,4492.8,3.789]
[1756921940398,0.472,4493.3,4492.8,3.789]
[1756921940946,2.22543909,4493.5,4492.8,3.789]
[1756921941089,0.472,4493.2,4492.8,3.789]
[1756921941293,0.472,4493.7,4493.3,0.1112]
[1756921941631,0.025,4493.8,4493.3,0.1112]
[1756921941632,0.3124,4493.4,4493.3,0.1112]
[1756921941960,1.9828566,4493.4,4493.3,3.6872]
[1756921942155,4.20834286,4493.4,4493.3,3.576]
[1756921942296,4.31954286,4493.4,4493.3,3.576]
[1756921942608,2.22559301,4493.2,4492.7,1.711]
[1756921942810,2.22559301,4493.2,4492.8,3.787]
[1756921943108,0.3124,4492.9,4492.8,3.787]
[1756921943638,0.7844,4492.9,4492.8,3.787]
[1756921944125,2.22583301,4492.7,4492.6,0.1112]
[1756921944345,1.36928,4492.9,4491.9,1.711]
[1756921944346,8.93316897,4492.8,4491.9,1.711]
[1756921944494,0.3124,4492.0,4491.9,1.711]
[1756921944693,0.7844,4492.0,4491.9,4.415]
[1756921945512,0.3124,4492.0,4491.9,4.415]
[1756921945710,0.7844,4492.0,4491.9,4.415]
[1756921946503,0.472,4492.6,4491.9,4.7145]
[1756921946704,0.1112,4492.7,4491.9,5.30727]
[1756921946929,0.1112,4492.7,4491.9,5.74967]
[1756921947313,0.1112,4492.7,4492.0,2.2261405]
[1756921948114,0.1112,4492.7,4491.9,7.67639172]
[1756921949120,2.22590706,4492.6,4491.9,1.8222]
[1756921949338,0.3124,4492.0,4491.9,1.711]
[1756921949628,0.7844,4492.0,4491.9,5.497]
[1756921950748,3.01057987,4492.0,4491.9,5.497]
[1756921950946,4.02026257,4492.0,4491.9,5.497]
[1756921951116,4.02026257,4492.0,4491.9,1.711]
[1756921951443,4.02026257,4492.0,4491.9,5.496]
[1756921952029,2.22622943,4491.9,4491.8,0.026]
[1756921952353,3.29392943,4491.9,4491.8,3.811]
[1756921952527,3.29392943,4491.9,4491.8,0.026]
[1756921952528,7.28659206,4491.9,4491.8,0.026]
[1756921952726,7.76596011,4491.9,4491.8,0.026]
[1756921957144,7.17986011,4491.9,4491.8,0.026]
[1756921957444,6.81169206,4491.9,4491.8,0.026]
[1756921958740,7.28659206,4491.9,4491.8,0.026]
[1756921960214,6.81169206,4491.9,4491.8,0.026]
[1756921962440,6.33009206,4491.9,4491.8,0.026]
[1756921962640,7.28659206,4491.9,4491.8,0.026]
[1756921963316,7.76512282,4491.9,4491.8,0.026]
[1756921964123,11.55112282,4491.9,4491.8,0.026]
[1756921965671,11.55112282,4491.9,4491.3,0.001]
[1756921965672,5.22627899,4491.8,4491.3,0.001]
[1756921965849,2.22642769,4491.5,4491.3,0.001]
[1756921966168,9.78000802,4491.4,4491.3,0.001]
[1756921966321,11.52850802,4491.4,4491.3,0.001]
[1756921966522,11.63970802,4491.4,4491.3,0.001]
[1756921966765,13.66476122,4491.4,4491.3,0.001]
[1756921968656,12.70425428,4491.4,4491.3,0.001]
[1756921970560,13.49625428,4491.4,4491.3,0.001]
[1756921972837,4.56155428,4491.4,4491.3,0.3071]
[1756921973161,9.49200802,4491.4,4491.3,0.3071]
[1756921973359,9.49200802,4491.4,4491.3,0.001]
[1756921973530,9.78100802,4491.4,4491.3,0.001]
[1756921973733,10.26260802,4491.4,4491.3,0.001]
[1756921973939,10.73750802,4491.4,4491.3,0.001]
[1756921974139,12.06461159,4491.4,4491.3,0.001]
[1756921974930,12.85661159,4491.4,4491.3,0.001]
[1756921975552,0.792,4491.1,4489.8,1e-08]
[1756921975776,6.0185355,4491.3,4489.8,1e-08]
[1756921975777,3.0,4490.1,4489.8,1e-08]
[1756921975964,5.51622109,4489.9,4489.8,1e-08]
[1756921976262,7.22785717,4489.9,4489.8,1e-08]
[1756921976460,8.18435717,4489.9,4489.8,1e-08]
[1756921979170,6.93885717,4489.9,4489.8,0.30610001]
[1756921979365,10.73185717,4489.9,4489.8,0.74790001]
[1756921979736,10.73185717,4489.9,4489.8,0.30610001]
[1756921980335,6.49875185,4489.9,4489.8,0.76070001]
[1756921980539,9.49875185,4489.9,4489.8,0.76070001]
[1756921981775,9.49875185,4489.9,4489.8,0.30610001]
[1756921982969,9.60995185,4489.9,4489.8,0.30610001]
[1756921983341,9.60995185,4489.9,4489.8,0.00100001]
[1756921983561,11.01032418,4489.9,4489.8,0.00100001]
[1756921983975,11.31412418,4489.9,4489.8,0.00100001]
[1756921984176,12.25362418,4489.9,4489.8,0.00100001]
[1756921984339,7.70472418,4489.9,4489.8,0.00100001]
[1756921984540,10.89612418,4489.9,4489.8,0.31380001]
[1756921984754,11.00732418,4489.9,4489.8,0.76840001]
[1756921984952,11.00732418,4489.9,4489.8,0.31380001]
[1756921985169,11.31112418,4489.9,4489.8,0.00100001]
[1756921985547,11.00732418,4489.9,4489.8,0.31380001]
[1756921986179,11.00732418,4489.9,4489.8,0.00100001]
[1756921986880,11.00732418,4489.9,4489.8,0.31380001]
[1756921987794,11.79852418,4489.9,4489.8,0.00100001]
[1756921988001,12.25062418,4489.9,4489.8,0.00100001]
[1756921988664,11.79852418,4489.9,4489.8,0.00100001]
[1756921989366,11.31112418,4489.9,4489.8,0.00100001]
[1756921990085,11.00732418,4489.9,4489.8,0.00100001]
[1756921990594,11.31112418,4489.9,4489.8,0.00100001]
[1756921990772,11.79852418,4489.9,4489.8,0.00100001]
[1756921991167,13.04262418,4489.9,4489.8,0.00100001]
[1756921991874,2.22746914,4489.4,4489.3,0.001]
[1756921992082,23.501994,4489.4,4489.3,0.001]
[1756921992411,24.745294,4489.4,4489.3,0.001]
[1756921992611,23.501994,4489.4,4489.3,0.3138]
[1756921992910,6.26268691,4489.4,4489.3,0.3138]
[1756921993112,9.6071999,4489.4,4489.3,0.7684]
[1756921993467,9.6071999,4489.4,4489.3,0.3138]
[1756921993896,5.8171999,4489.4,4489.3,0.7684]
[1756921994098,9.6081999,4489.4,4489.3,0.7684]
[1756921994973,9.6081999,4489.4,4489.3,1.2211]
[1756921995375,5.8171999,4489.4,4489.3,0.3138]
[1756921995583,5.8171999,4489.4,4489.3,0.7684]
[1756921995785,5.8171999,4489.4,4489.3,1.2211]
[1756921996903,3.58973076,4489.4,4489.3,1.2211]
[1756921997115,0.4546,4490.1,4489.3,3.57072876]
[1756921997276,0.1112,4489.9,4489.4,0.9073]
[1756921997591,0.025,4490.8,4489.8,0.3128]
[1756921997592,0.1112,4490.2,4489.8,0.3128]
[1756921997789,0.1112,4490.2,4489.9,0.9073]
[1756921998112,0.47970891,4490.6,4490.1,0.424]
[1756921998301,0.59090891,4490.7,4490.1,0.424]
[1756921998516,2.33802674,4490.7,4490.2,0.9073]
[1756921998728,2.33802674,4490.7,4490.6,0.3128]
[1756921998729,0.1112,4490.7,4490.6,0.3128]
[1756921998929,0.59078816,4490.7,4490.6,1.2201]
[1756921999524,0.1112,4490.7,4490.6,1.2201]
[1756922000697,0.1112,4490.7,4490.6,0.7674]
[1756922000913,2.34002432,4490.7,4490.6,0.3128]
[1756922001409,0.1132,4490.7,4490.6,0.7674]
[1756922002333,2.34002432,4490.7,4490.6,0.3128]
[1756922002830,0.1132,4490.7,4490.6,0.7674]
[1756922003233,2.34002432,4490.7,4490.6,0.7674]
[1756922004119,0.1132,4490.7,4490.6,0.7674]
[1756922005241,2.34002432,4490.7,4490.6,0.7674]
[1756922005450,2.34002432,4490.7,4490.6,0.3128]
[1756922005951,0.1132,4490.7,4490.1,0.5658]
[1756922006153,0.1132,4490.7,4489.7,0.4527]
[1756922006154,0.3058,4490.7,4489.7,0.1112]
[1756922006317,0.48115489,4490.7,4489.8,0.9073]
[1756922006521,0.002,4490.7,4490.6,0.3128]
[1756922006822,2.34006723,4490.7,4490.6,0.3128]
[1756922007314,2.22697404,4490.4,4489.8,0.1112]
[1756922007519,0.1112,4490.4,4489.8,0.5658]
[1756922007718,2.22712688,4490.1,4489.8,0.5658]
[1756922008049,2.3381878,4490.4,4489.6,1.8242]
[1756922008050,0.1112,4490.4,4489.6,1.8242]
[1756922008352,0.2340026,4490.4,4489.6,1.713]
[1756922008551,2.22728704,4489.8,4489.6,1.713]
[1756922008750,2.2272707,4489.8,4489.7,0.3128]
[1756922009052,2.33852031,4489.7,4489.6,1.713]
[1756922009579,2.22746914,4489.4,4489.3,0.001]
[1756922009854,2.33866914,4489.4,4489.3,0.001]
[1756922010171,3.55003354,4489.4,4489.3,0.7432]
[1756922010343,2.33866914,4489.4,4489.3,0.7432]
[1756922010839,2.33866914,4489.4,4489.3,0.311]
[1756922012558,2.33866914,4489.4,4489.3,0.001]
[1756922013253,2.62626914,4489.4,4489.3,0.001]
[1756922013733,3.08206914,4489.4,4489.3,0.001]
[1756922013937,4.29251594,4489.4,4489.3,0.001]
[1756922014761,3.54911594,4489.4,4489.3,0.001]
[1756922014928,3.83671594,4489.4,4489.3,0.001]
[1756922015128,3.54911594,4489.4,4489.3,0.311]
[1756922015529,3.83671594,4489.4,4489.3,0.001]
[1756922015728,4.29251594,4489.4,4489.3,0.001]
[1756922016364,9.01772317,4489.4,4489.3,0.001]
[1756922016531,12.01772317,4489.4,4489.3,0.001]
[1756922017860,12.01772317,4489.4,4489.3,1.1985]
[1756922017861,0.47940723,4489.4,4489.3,1.1985]
[1756922018159,2.22734183,4489.7,4489.3,1.1985]
[1756922018365,2.22734183,4489.7,4489.4,0.8875]
[1756922018570,0.2876,4489.5,4489.3,0.001]
[1756922018726,2.7066115,4489.8,4489.3,0.001]
[1756922018926,2.22746914,4489.4,4489.3,0.001]
[1756922019135,2.22740012,4489.6,4489.3,0.001]
[1756922019136,3.0,4489.9,4489.3,0.001]
[1756922019335,0.47934378,4489.8,4489.3,0.7432]
[1756922019537,2.22746025,4489.5,4489.4,0.4322]
[1756922019763,2.22746025,4489.5,4489.4,0.7422]
[1756922020964,6.794,4490.1,4489.4,0.7422]
[1756922021167,0.002,4489.8,4489.4,0.31]
[1756922021341,2.22736992,4489.6,4489.5,0.4322]
[1756922021536,2.22736992,4489.6,4489.5,0.7422]
[1756922022263,2.22736992,4489.6,4489.5,0.31]
[1756922024164,2.2292799,4489.8,4489.5,0.7422]
[1756922024346,2.2292799,4489.8,4489.5,0.31]
[1756922024682,2.2273311,4489.7,4489.6,0.4322]
[1756922025090,2.2273311,4489.7,4489.6,0.7422]